Workbook

Sheet sheet
A1: 附件：
A2: 安顺市西秀区2022年上半年事业单位面向社会公开招聘工作人员面试成绩及总成绩
A3: 序号 | B3: 姓名 | C3: 准考证号 | D3: 报考单位及代码 | E3: 报考职位及代码 | F3: 招聘计划 | G3: 笔试成绩 | H3: 笔试成绩折合分（60%） | I3: 不达1：3的岗位面试须达70分及以上方能进入下一环节 | J3: 面试得分 | K3: 面试成绩折合分（40%） | L3: 总分
A4: 1 | B4: 杨萍 | C4: 1152510302020 | D4: 1004安顺市西秀区西街办事处国土资源管理所 | E4: 01管理岗位 | F4: 1 | G4: 194.5 | H4: =G4/3*0.6 -> 38.90 | J4: 80.60 | K4: =J4*0.4 -> 32.24 | L4: 71.14
A5: 2 | B5: 郭应大 | C5: 1152510301807 | D5: 1007安顺市西秀区七眼桥镇国土资源管理所 | E5: 01管理岗位 | F5: 1 | G5: 157 | H5: 31.40 | J5: 78.20 | K5: 31.28 | L5: 62.68
A6: 3 | B6: 万晓宇 | C6: 1152510300105 | D6: 1001安顺市西秀区国土资源执法监察大队 | E6: 01管理岗位 | F6: 1 | G6: 193.5 | H6: 38.70 | J6: 81.60 | K6: 32.64 | L6: 71.34
A7: 4 | B7: 张翔 | C7: 1152510300107 | D7: 1011安顺市西秀区新场布依族苗族乡国土资源管理所 | E7: 01管理岗位 | F7: 1 | G7: 186 | H7: 37.20 | J7: 78.20 | K7: 31.28 | L7: 68.48
A8: 5 | B8: 杨璇 | C8: 1152510301529 | D8: 1003安顺市西秀区东街办事处国土资源管理所 | E8: 01管理岗位 | F8: 1 | G8: 179.5 | H8: 35.90 | J8: 79.00 | K8: 31.60 | L8: 67.50
A9: 6 | B9: 韦鉴真 | C9: 1152510301616 | D9: 1003安顺市西秀区东街办事处国土资源管理所 | E9: 01管理岗位 | F9: 1 | G9: 204 | H9: 40.80 | J9: 74.00 | K9: 29.60 | L9: 70.40
A10: 7 | B10: 于潜 | C10: 1152510300504 | D10: 1005安顺市西秀区东关办事处国土资源管理所 | E10: 01管理岗位 | F10: 1 | G10: 182.5 | H10: 36.50 | J10: 79.80 | K10: 31.92 | L10: 68.42
A11: 8 | B11: 魏捷 | C11: 1152510301628 | D11: 1008安顺市西秀区蔡官镇国土资源管理所 | E11: 01管理岗位 | F11: 2 | G11: 196 | H11: 39.20 | J11: 85.00 | K11: 34.00 | L11: 73.20
A12: 9 | B12: 杨豪 | C12: 1152510300511 | D12: 1006安顺市西秀区华西办事处国土资源管理所 | E12: 01管理岗位 | F12: 1 | G12: 195.5 | H12: 39.10 | J12: 82.20 | K12: 32.88 | L12: 71.98
A13: 10 | B13: 雷博 | C13: 1152510301701 | D13: 1012安顺市西秀区大西桥镇国土资源管理所 | E13: 01管理岗位 | F13: 1 | G13: 177.5 | H13: 35.50 | J13: 80.20 | K13: 32.08 | L13: 67.58
A14: 11 | B14: 陈极 | C14: 1152510301427 | D14: 1013安顺市西秀区双堡镇国土资源管理所 | E14: 01管理岗位 | F14: 1 | G14: 185.5 | H14: 37.10 | J14: 80.80 | K14: 32.32 | L14: 69.42
A15: 12 | B15: 齐浩然 | C15: 1152510300630 | D15: 1001安顺市西秀区国土资源执法监察大队 | E15: 01管理岗位 | F15: 1 | G15: 193.5 | H15: 38.70 | J15: 80.00 | K15: 32.00 | L15: 70.70
A16: 13 | B16: 张埕境 | C16: 1152510300611 | D16: 1014安顺市西秀区轿子山镇国土资源管理所 | E16: 01管理岗位 | F16: 1 | G16: 203 | H16: 40.60 | J16: 74.40 | K16: 29.76 | L16: 70.36
A17: 14 | B17: 陶文锋 | C17: 1152510301420 | D17: 1012安顺市西秀区大西桥镇国土资源管理所 | E17: 01管理岗位 | F17: 1 | G17: 176 | H17: 35.20 | J17: 83.20 | K17: 33.28 | L17: 68.48
A18: 15 | B18: 孙大炜 | C18: 1152510301226 | D18: 1003安顺市西秀区东街办事处国土资源管理所 | E18: 01管理岗位 | F18: 1 | G18: 184.5 | H18: 36.90 | J18: 79.40 | K18: 31.76 | L18: 68.66
A19: 16 | B19: 邓金华 | C19: 1152510301626 | D19: 1010安顺市西秀区鸡场布依族苗族乡国土资源管理所 | E19: 01管理岗位 | F19: 1 | G19: 178 | H19: 35.60 | J19: 73.80 | K19: 29.52 | L19: 65.12
A20: 17 | B20: 刘欣玥 | C20: 1152510301127 | D20: 1008安顺市西秀区蔡官镇国土资源管理所 | E20: 01管理岗位 | F20: 2 | G20: 185.5 | H20: 37.10 | J20: 76.00 | K20: 30.40 | L20: 67.50
A21: 18 | B21: 曹鱼飞 | C21: 1152510301507 | D21: 1008安顺市西秀区蔡官镇国土资源管理所 | E21: 01管理岗位 | F21: 2 | G21: 191.5 | H21: 38.30 | J21: 73.80 | K21: 29.52 | L21: 67.82
A22: 19 | B22: 周冬莉 | C22: 1152510300221 | D22: 1007安顺市西秀区七眼桥镇国土资源管理所 | E22: 01管理岗位 | F22: 1 | G22: 162.5 | H22: 32.50 | J22: 74.40 | K22: 29.76 | L22: 62.26
A23: 20 | B23: 周松 | C23: 1152510301117 | D23: 1007安顺市西秀区七眼桥镇国土资源管理所 | E23: 01管理岗位 | F23: 1 | G23: 159.5 | H23: 31.90 | J23: 63.20 | K23: 25.28 | L23: 57.18
A24: 21 | B24: 黄诗涛 | C24: 1152510301011 | D24: 1013安顺市西秀区双堡镇国土资源管理所 | E24: 01管理岗位 | F24: 1 | G24: 189.5 | H24: 37.90 | J24: 79.80 | K24: 31.92 | L24: 69.82
A25: 22 | B25: 张玲利 | C25: 1152510301623 | D25: 1002安顺市西秀区规划设计所 | E25: 01专业技术岗位 | F25: 1 | G25: 190.5 | H25: 38.10 | J25: 79.80 | K25: 31.92 | L25: 70.02
A26: 23 | B26: 侯参彪 | C26: 1152510301330 | D26: 1008安顺市西秀区蔡官镇国土资源管理所 | E26: 01管理岗位 | F26: 2 | G26: 188 | H26: 37.60 | J26: 76.00 | K26: 30.40 | L26: 68.00
A27: 24 | B27: 李小琼 | C27: 1152510300102 | D27: 1005安顺市西秀区东关办事处国土资源管理所 | E27: 01管理岗位 | F27: 1 | G27: 188.5 | H27: 37.70 | J27: 82.20 | K27: 32.88 | L27: 70.58
A28: 25 | B28: 燕赛赛 | C28: 1152510301202 | D28: 1012安顺市西秀区大西桥镇国土资源管理所 | E28: 01管理岗位 | F28: 1 | G28: 190.5 | H28: 38.10 | J28: 79.40 | K28: 31.76 | L28: 69.86
A29: 26 | B29: 冯雨婷 | C29: 1152510300215 | D29: 1002安顺市西秀区规划设计所 | E29: 01专业技术岗位 | F29: 1 | G29: 179.5 | H29: 35.90 | J29: 72.40 | K29: 28.96 | L29: 64.86
A30: 27 | B30: 郝忠晴 | C30: 1152510300815 | D30: 1014安顺市西秀区轿子山镇国土资源管理所 | E30: 01管理岗位 | F30: 1 | G30: 182.5 | H30: 36.50 | J30: 70.20 | K30: 28.08 | L30: 64.58
A31: 28 | B31: 朱祉霖 | C31: 1152510300901 | D31: 1009安顺市西秀区岩腊苗族布依族乡国土资源管理所 | E31: 01管理岗位 | F31: 1 | G31: 191 | H31: 38.20 | J31: 82.00 | K31: 32.80 | L31: 71.00
A32: 29 | B32: 谢锦波 | C32: 1152510301525 | D32: 1009安顺市西秀区岩腊苗族布依族乡国土资源管理所 | E32: 01管理岗位 | F32: 1 | G32: 184 | H32: 36.80 | J32: 76.60 | K32: 30.64 | L32: 67.44
A33: 30 | B33: 程潇 | C33: 1152510301228 | D33: 1010安顺市西秀区鸡场布依族苗族乡国土资源管理所 | E33: 01管理岗位 | F33: 1 | G33: 181 | H33: 36.20 | J33: 82.80 | K33: 33.12 | L33: 69.32
A34: 31 | B34: 郑丽娜 | C34: 1152510301522 | D34: 1002安顺市西秀区规划设计所 | E34: 01专业技术岗位 | F34: 1 | G34: 192.5 | H34: 38.50 | J34: 82.40 | K34: 32.96 | L34: 71.46
A35: 32 | B35: 陈琦果 | C35: 1152510301912 | D35: 1008安顺市西秀区蔡官镇国土资源管理所 | E35: 01管理岗位 | F35: 2 | G35: 204 | H35: 40.80 | J35: 78.60 | K35: 31.44 | L35: 72.24
A36: 33 | B36: 吴强宇 | C36: 1152510302025 | D36: 1001安顺市西秀区国土资源执法监察大队 | E36: 01管理岗位 | F36: 1 | G36: 207 | H36: 41.40 | J36: 72.00 | K36: 28.80 | L36: 70.20
A37: 34 | B37: 熊巅 | C37: 1152510300229 | D37: 1011安顺市西秀区新场布依族苗族乡国土资源管理所 | E37: 01管理岗位 | F37: 1 | G37: 178 | H37: 35.60 | J37: 84.00 | K37: 33.60 | L37: 69.20
A38: 35 | B38: 伍贤凤 | C38: 1152510301727 | D38: 1001安顺市西秀区国土资源执法监察大队 | E38: 01管理岗位 | F38: 1 | G38: 203.5 | H38: 40.70 | J38: 83.80 | K38: 33.52 | L38: 74.22
A39: 36 | B39: 龙毅 | C39: 1152510301128 | D39: 1005安顺市西秀区东关办事处国土资源管理所 | E39: 01管理岗位 | F39: 1 | G39: 201.5 | H39: 40.30 | J39: 面试缺考
A40: 37 | B40: 吴专 | C40: 1152510301009 | D40: 1006安顺市西秀区华西办事处国土资源管理所 | E40: 01管理岗位 | F40: 1 | G40: 175.5 | H40: 35.10 | J40: 面试缺考
A41: 38 | B41: 景琪云 | C41: 1152510301209 | D41: 1010安顺市西秀区鸡场布依族苗族乡国土资源管理所 | E41: 01管理岗位 | F41: 1 | G41: 177.5 | H41: 35.50 | J41: 面试缺考
A42: 39 | B42: 高传捷 | C42: 1152510300118 | D42: 1004安顺市西秀区西街办事处国土资源管理所 | E42: 01管理岗位 | F42: 1 | G42: 206.5 | H42: 41.30 | J42: 80.20 | K42: =J42*0.4 -> 32.08 | L42: 73.38
A43: 40 | B43: 陈端端 | C43: 1152510301829 | D43: 1004安顺市西秀区西街办事处国土资源管理所 | E43: 01管理岗位 | F43: 1 | G43: 185 | H43: 37.00 | J43: 面试缺考
A44: 41 | B44: 王发文 | C44: 1152510301603 | D44: 1009安顺市西秀区岩腊苗族布依族乡国土资源管理所 | E44: 01管理岗位 | F44: 1 | G44: 183.5 | H44: 36.70 | J44: 面试缺考
A45: 42 | B45: 左源 | C45: 1152510301013 | D45: 1011安顺市西秀区新场布依族苗族乡国土资源管理所 | E45: 01管理岗位 | F45: 1 | G45: 182 | H45: 36.40 | J45: 面试缺考
A46: 43 | B46: 吴经彪 | C46: 1152510300714 | D46: 1013安顺市西秀区双堡镇国土资源管理所 | E46: 01管理岗位 | F46: 1 | G46: 173 | H46: 34.60 | J46: 面试缺考
A47: 44 | B47: 雷浩 | C47: 1152510300206 | D47: 1014安顺市西秀区轿子山镇国土资源管理所 | E47: 01管理岗位 | F47: 1 | G47: 163 | H47: 32.60 | J47: 面试缺考
A48: 45 | B48: 韦靖 | C48: 5652510305023 | D48: 1015安顺市西秀区疾病预防控制中心 | E48: 02专业技术岗位 | F48: 2 | G48: 182.2 | H48: 36.44 | J48: 74.00 | K48: =J48*0.4 -> 29.60 | L48: 66.04
A49: 46 | B49: 宋泯璋 | C49: 5552510304506 | D49: 1015安顺市西秀区疾病预防控制中心 | E49: 03专业技术岗位 | F49: 1 | G49: 144.7 | H49: 28.94 | J49: 73.20 | K49: 29.28 | L49: 58.22
A50: 47 | B50: 孙海燕 | C50: 5452510303614 | D50: 1015安顺市西秀区疾病预防控制中心 | E50: 07专业技术岗位 | F50: 1 | G50: 192.6 | H50: 38.52 | J50: 82.40 | K50: 32.96 | L50: 71.48
A51: 48 | B51: 李秋雨 | C51: 5552510304818 | D51: 1015安顺市西秀区疾病预防控制中心 | E51: 04专业技术岗位 | F51: 1 | G51: 170.7 | H51: 34.14 | J51: 68.20 | K51: 27.28 | L51: 61.42
A52: 49 | B52: 黄姚 | C52: 5352510302520 | D52: 1015安顺市西秀区疾病预防控制中心 | E52: 05专业技术岗位 | F52: 1 | G52: 180.2 | H52: 36.04 | J52: 67.00 | K52: 26.80 | L52: 62.84
A53: 50 | B53: 姜姝瑶 | C53: 5352510302227 | D53: 1015安顺市西秀区疾病预防控制中心 | E53: 05专业技术岗位 | F53: 1 | G53: 187.1 | H53: 37.42 | J53: 86.20 | K53: 34.48 | L53: 71.90
A54: 51 | B54: 杨小英 | C54: 5652510305008 | D54: 1015安顺市西秀区疾病预防控制中心 | E54: 02专业技术岗位 | F54: 2 | G54: 198.5 | H54: 39.70 | J54: 78.00 | K54: 31.20 | L54: 70.90
A55: 52 | B55: 周凌 | C55: 5552510304913 | D55: 1015安顺市西秀区疾病预防控制中心 | E55: 04专业技术岗位 | F55: 1 | G55: 189.7 | H55: 37.94 | J55: 69.20 | K55: 27.68 | L55: 65.62
A56: 53 | B56: 王明进 | C56: 5652510305016 | D56: 1015安顺市西秀区疾病预防控制中心 | E56: 01专业技术岗位 | F56: 2 | G56: 180.3 | H56: 36.06 | J56: 82.40 | K56: 32.96 | L56: 69.02
A57: 54 | B57: 刘冕 | C57: 5552510304717 | D57: 1015安顺市西秀区疾病预防控制中心 | E57: 03专业技术岗位 | F57: 1 | G57: 147.3 | H57: 29.46 | J57: 78.80 | K57: 31.52 | L57: 60.98
A58: 55 | B58: 梅舒 | C58: 5652510305019 | D58: 1015安顺市西秀区疾病预防控制中心 | E58: 02专业技术岗位 | F58: 2 | G58: 174 | H58: 34.80 | J58: 76.20 | K58: 30.48 | L58: 65.28
A59: 56 | B59: 郭文帝 | C59: 5552510304309 | D59: 1015安顺市西秀区疾病预防控制中心 | E59: 06专业技术岗位 | F59: 2 | G59: 162.1 | H59: 32.42 | J59: 69.60 | K59: 27.84 | L59: 60.26
A60: 57 | B60: 林靖宇 | C60: 5352510302415 | D60: 1015安顺市西秀区疾病预防控制中心 | E60: 05专业技术岗位 | F60: 1 | G60: 182.8 | H60: 36.56 | J60: 80.00 | K60: 32.00 | L60: 68.56
A61: 58 | B61: 王玉 | C61: 5552510304205 | D61: 1015安顺市西秀区疾病预防控制中心 | E61: 06专业技术岗位 | F61: 2 | G61: 172.4 | H61: 34.48 | J61: 82.40 | K61: 32.96 | L61: 67.44
A62: 59 | B62: 何梅 | C62: 5652510305006 | D62: 1015安顺市西秀区疾病预防控制中心 | E62: 02专业技术岗位 | F62: 2 | G62: 171.8 | H62: 34.36 | J62: 76.20 | K62: 30.48 | L62: 64.84
A63: 60 | B63: 吕卓宁 | C63: 5552510304716 | D63: 1015安顺市西秀区疾病预防控制中心 | E63: 03专业技术岗位 | F63: 1 | G63: 159.4 | H63: 31.88 | J63: 79.80 | K63: 31.92 | L63: 63.80
A64: 61 | B64: 柯英 | C64: 5652510305012 | D64: 1015安顺市西秀区疾病预防控制中心 | E64: 02专业技术岗位 | F64: 2 | G64: 172.8 | H64: 34.56 | J64: 76.00 | K64: 30.40 | L64: 64.96
A65: 62 | B65: 程蝶蝶 | C65: 5652510305018 | D65: 1015安顺市西秀区疾病预防控制中心 | E65: 02专业技术岗位 | F65: 2 | G65: 185.7 | H65: 37.14 | J65: 76.80 | K65: 30.72 | L65: 67.86
A66: 63 | B66: 周成绪 | C66: 5552510304317 | D66: 1015安顺市西秀区疾病预防控制中心 | E66: 06专业技术岗位 | F66: 2 | G66: 164.9 | H66: 32.98 | J66: 75.20 | K66: 30.08 | L66: 63.06
A67: 64 | B67: 胡安 | C67: 5552510304227 | D67: 1015安顺市西秀区疾病预防控制中心 | E67: 06专业技术岗位 | F67: 2 | G67: 176.2 | H67: 35.24 | J67: 85.00 | K67: 34.00 | L67: 69.24
A68: 65 | B68: 安梓垚 | C68: 5552510304827 | D68: 1015安顺市西秀区疾病预防控制中心 | E68: 06专业技术岗位 | F68: 2 | G68: 162.6 | H68: =G68/3*0.6 -> 32.52 | J68: 75.00 | K68: 30.00 | L68: 62.52
A69: 66 | B69: 刘莹 | C69: 5452510303913 | D69: 1015安顺市西秀区疾病预防控制中心 | E69: 07专业技术岗位 | F69: 1 | G69: 187.2 | H69: 37.44 | J69: 79.20 | K69: 31.68 | L69: 69.12
A70: 67 | B70: 刘松 | C70: 5652510305005 | D70: 1015安顺市西秀区疾病预防控制中心 | E70: 01专业技术岗位 | F70: 2 | G70: 188.6 | H70: 37.72 | J70: 79.20 | K70: 31.68 | L70: 69.40
A71: 68 | B71: 王云梦 | C71: 5452510303914 | D71: 1015安顺市西秀区疾病预防控制中心 | E71: 07专业技术岗位 | F71: 1 | G71: 186.3 | H71: 37.26 | J71: 77.00 | K71: 30.80 | L71: 68.06
A72: 69 | B72: 杜永菊 | C72: 5552510304730 | D72: 1015安顺市西秀区疾病预防控制中心 | E72: 06专业技术岗位 | F72: 2 | G72: 162 | H72: 32.40 | J72: 77.80 | K72: 31.12 | L72: 63.52
A73: 70 | B73: 贺圣涛 | C73: 5652510305022 | D73: 1015安顺市西秀区疾病预防控制中心 | E73: 01专业技术岗位 | F73: 2 | G73: 160 | H73: 32.00 | J73: 面试缺考
A74: 71 | B74: 杨英 | C74: 5652510305020 | D74: 1015安顺市西秀区疾病预防控制中心 | E74: 01专业技术岗位 | F74: 2 | G74: 150.9 | H74: 30.18 | J74: 面试缺考
A75: 72 | B75: 陈婷 | C75: 4152510104130 | D75: 1019安顺市西秀区华西办事处幼儿园 | E75: 02专业技术岗位 | F75: 1 | G75: 175 | H75: 35.00 | J75: 72.40 | K75: =J75*0.4 -> 28.96 | L75: 63.96
A76: 73 | B76: 朱文艳 | C76: 4152510100623 | D76: 1016安顺市西秀区东街办事处幼儿园 | E76: 01专业技术岗位 | F76: 2 | G76: 183.5 | H76: 36.70 | J76: 78.90 | K76: 31.56 | L76: 68.26
A77: 74 | B77: 吴有丽 | C77: 4152510104602 | D77: 1016安顺市西秀区东街办事处幼儿园 | E77: 02专业技术岗位 | F77: 1 | G77: 172 | H77: 34.40 | J77: 70.80 | K77: 28.32 | L77: 62.72
A78: 75 | B78: 刘志惠 | C78: 4152510102805 | D78: 1019安顺市西秀区华西办事处幼儿园 | E78: 02专业技术岗位 | F78: 1 | G78: 170 | H78: 34.00 | J78: 81.30 | K78: 32.52 | L78: 66.52
A79: 76 | B79: 夏爽 | C79: 4152510103720 | D79: 1017安顺市西秀区南街办事处幼儿园 | E79: 02专业技术岗位 | F79: 1 | G79: 174.5 | H79: 34.90 | J79: 79.30 | K79: 31.72 | L79: 66.62
A80: 77 | B80: 刘庆 | C80: 4152510105025 | D80: 1017安顺市西秀区南街办事处幼儿园 | E80: 01专业技术岗位 | F80: 2 | G80: 181.5 | H80: 36.30 | J80: 76.20 | K80: 30.48 | L80: 66.78
A81: 78 | B81: 李自强 | C81: 4152510103623 | D81: 1017安顺市西秀区南街办事处幼儿园 | E81: 01专业技术岗位 | F81: 2 | G81: 182 | H81: 36.40 | J81: 75.80 | K81: 30.32 | L81: 66.72
A82: 79 | B82: 刘思思 | C82: 4152510100409 | D82: 1019安顺市西秀区华西办事处幼儿园 | E82: 01专业技术岗位 | F82: 2 | G82: 190.5 | H82: 38.10 | J82: 81.60 | K82: 32.64 | L82: 70.74
A83: 80 | B83: 尚宝兴 | C83: 4152510104326 | D83: 1019安顺市西秀区华西办事处幼儿园 | E83: 02专业技术岗位 | F83: 1 | G83: 166.5 | H83: 33.30 | J83: 73.20 | K83: 29.28 | L83: 62.58
A84: 81 | B84: 杨小莲 | C84: 4152510104722 | D84: 1019安顺市西秀区华西办事处幼儿园 | E84: 01专业技术岗位 | F84: 2 | G84: 179.5 | H84: 35.90 | J84: 71.20 | K84: 28.48 | L84: 64.38
A85: 82 | B85: 陈美艳 | C85: 4152510104925 | D85: 1017安顺市西秀区南街办事处幼儿园 | E85: 01专业技术岗位 | F85: 2 | G85: 188.5 | H85: 37.70 | J85: 75.40 | K85: 30.16 | L85: 67.86
A86: 83 | B86: 潘定友 | C86: 4152510101409 | D86: 1017安顺市西秀区南街办事处幼儿园 | E86: 02专业技术岗位 | F86: 1 | G86: 177.5 | H86: 35.50 | J86: 73.40 | K86: 29.36 | L86: 64.86
A87: 84 | B87: 袁思敏 | C87: 4152510105217 | D87: 1016安顺市西秀区东街办事处幼儿园 | E87: 01专业技术岗位 | F87: 2 | G87: 177 | H87: 35.40 | J87: 74.20 | K87: 29.68 | L87: 65.08
A88: 85 | B88: 胡丽 | C88: 4152510100520 | D88: 1018安顺市西秀区北街办事处幼儿园 | E88: 01专业技术岗位 | F88: 1 | G88: 196.5 | H88: 39.30 | J88: 74.00 | K88: 29.60 | L88: 68.90
A89: 86 | B89: 朱成雄 | C89: 4152510100503 | D89: 1016安顺市西秀区东街办事处幼儿园 | E89: 01专业技术岗位 | F89: 2 | G89: 181.5 | H89: 36.30 | J89: 76.60 | K89: 30.64 | L89: 66.94
A90: 87 | B90: 谢蔓 | C90: 4152510101224 | D90: 1019安顺市西秀区华西办事处幼儿园 | E90: 02专业技术岗位 | F90: 1 | G90: 166.5 | H90: 33.30 | J90: 89.80 | K90: 35.92 | L90: 69.22
A91: 88 | B91: 王丽涵 | C91: 4152510104428 | D91: 1016安顺市西秀区东街办事处幼儿园 | E91: 01专业技术岗位 | F91: 2 | G91: 170.5 | H91: 34.10 | J91: 79.80 | K91: 31.92 | L91: 66.02
A92: 89 | B92: 王小孩 | C92: 4152510102425 | D92: 1016安顺市西秀区东街办事处幼儿园 | E92: 02专业技术岗位 | F92: 1 | G92: 172.5 | H92: 34.50 | J92: 71.40 | K92: 28.56 | L92: 63.06
A93: 90 | B93: 金典 | C93: 4152510100114 | D93: 1016安顺市西秀区东街办事处幼儿园 | E93: 01专业技术岗位 | F93: 2 | G93: 176 | H93: 35.20 | J93: 82.60 | K93: 33.04 | L93: 68.24
A94: 91 | B94: 杨学敏 | C94: 4152510102923 | D94: 1019安顺市西秀区华西办事处幼儿园 | E94: 01专业技术岗位 | F94: 2 | G94: 206 | H94: 41.20 | J94: 70.80 | K94: 28.32 | L94: 69.52
A95: 92 | B95: 刘薇 | C95: 4152510105013 | D95: 1019安顺市西秀区华西办事处幼儿园 | E95: 01专业技术岗位 | F95: 2 | G95: 176 | H95: 35.20 | J95: 77.80 | K95: 31.12 | L95: 66.32
A96: 93 | B96: 杨杰 | C96: 4152510100823 | D96: 1016安顺市西秀区东街办事处幼儿园 | E96: 02专业技术岗位 | F96: 1 | G96: 181 | H96: 36.20 | J96: 73.80 | K96: 29.52 | L96: 65.72
A97: 94 | B97: 蒋瑶 | C97: 4152510103829 | D97: 1017安顺市西秀区南街办事处幼儿园 | E97: 01专业技术岗位 | F97: 2 | G97: 198.5 | H97: 39.70 | J97: 82.20 | K97: 32.88 | L97: 72.58
A98: 95 | B98: 尚梅 | C98: 4152510105401 | D98: 1017安顺市西秀区南街办事处幼儿园 | E98: 01专业技术岗位 | F98: 2 | G98: 195.5 | H98: 39.10 | J98: 77.60 | K98: 31.04 | L98: 70.14
A99: 96 | B99: 宋芹芹 | C99: 4152510102427 | D99: 1019安顺市西秀区华西办事处幼儿园 | E99: 01专业技术岗位 | F99: 2 | G99: 173.5 | H99: 34.70 | J99: 73.20 | K99: 29.28 | L99: 63.98
A100: 97 | B100: 张宇欣 | C100: 4152510103902 | D100: 1017安顺市西秀区南街办事处幼儿园 | E100: 01专业技术岗位 | F100: 2 | G100: 186 | H100: 37.20 | J100: 78.40 | K100: 31.36 | L100: 68.56
A101: 98 | B101: 张华岭 | C101: 4152510103616 | D101: 1017安顺市西秀区南街办事处幼儿园 | E101: 02专业技术岗位 | F101: 1 | G101: 172.5 | H101: 34.50 | J101: 81.00 | K101: 32.40 | L101: 66.90
A102: 99 | B102: 石碧瑶 | C102: 4152510104014 | D102: 1018安顺市西秀区北街办事处幼儿园 | E102: 01专业技术岗位 | F102: 1 | G102: 183.5 | H102: 36.70 | J102: 74.00 | K102: 29.60 | L102: 66.30
A103: 100 | B103: 陈雪 | C103: 4152510100225 | D103: 1018安顺市西秀区北街办事处幼儿园 | E103: 01专业技术岗位 | F103: 1 | G103: 181 | H103: 36.20 | J103: 面试缺考
A104: 101 | B104: 王芳芳 | C104: 4152510104907 | D104: 1019安顺市西秀区华西办事处幼儿园 | E104: 01专业技术岗位 | F104: 2 | G104: 184.5 | H104: 36.90 | J104: 面试缺考
A105: 102 | B105: 杨盈 | C105: 4152510105211 | D105: 1016安顺市西秀区东街办事处幼儿园 | E105: 01专业技术岗位 | F105: 2 | G105: 181 | H105: 36.20 | J105: 面试缺考
A106: 103 | B106: 朱雪梅 | C106: 4152510104701 | D106: 1024安顺市第六小学 | E106: 01专业技术岗位 | F106: 3 | G106: 185.5 | H106: 37.10 | J106: 69.80 | K106: =J106*0.4 -> 27.92 | L106: 65.02
A107: 104 | B107: 王莹 | C107: 4152510101925 | D107: 1024安顺市第六小学 | E107: 01专业技术岗位 | F107: 3 | G107: 193 | H107: 38.60 | J107: 86.00 | K107: 34.40 | L107: 73.00
A108: 105 | B108: 朱可可 | C108: 4152510100829 | D108: 1027安顺市西秀区东关办事处头铺小学 | E108: 01专业技术岗位 | F108: 1 | G108: 200.5 | H108: 40.10 | J108: 80.60 | K108: 32.24 | L108: 72.34
A109: 106 | B109: 陈丹丹 | C109: 4152510102519 | D109: 1021安顺市凤仪小学 | E109: 03专业技术岗位 | F109: 1 | G109: 181 | H109: 36.20 | J109: 81.80 | K109: 32.72 | L109: 68.92
A110: 107 | B110: 沙富雄 | C110: 4152510103114 | D110: 1031安顺凤凰学校 | E110: 05专业技术岗位 | F110: 2 | G110: 170.5 | H110: 34.10 | J110: 85.00 | K110: 34.00 | L110: 68.10
A111: 108 | B111: 李奔升 | C111: 4152510103809 | D111: 1031安顺凤凰学校 | E111: 05专业技术岗位 | F111: 2 | G111: 189 | H111: 37.80 | J111: 89.40 | K111: 35.76 | L111: 73.56
A112: 109 | B112: 杨文飞 | C112: 4152510101322 | D112: 1025安顺市第七小学 | E112: 01专业技术岗位 | F112: 3 | G112: 208 | H112: 41.60 | J112: 77.80 | K112: 31.12 | L112: 72.72
A113: 110 | B113: 任小敏 | C113: 4152510100719 | D113: 1025安顺市第七小学 | E113: 01专业技术岗位 | F113: 3 | G113: 188.5 | H113: 37.70 | J113: 66.80 | K113: 26.72 | L113: 64.42
A114: 111 | B114: 郭俊 | C114: 4152510105212 | D114: 1025安顺市第七小学 | E114: 01专业技术岗位 | F114: 3 | G114: 190.5 | H114: 38.10 | J114: 67.80 | K114: 27.12 | L114: 65.22
A115: 112 | B115: 王祥 | C115: 4252510203325 | D115: 1029安顺市第九中学 | E115: 02专业技术岗位 | F115: 2 | G115: 202 | H115: 40.40 | J115: 77.40 | K115: 30.96 | L115: 71.36
A116: 113 | B116: 谢利芳 | C116: 4152510100219 | D116: 1021安顺市凤仪小学 | E116: 04专业技术岗位 | F116: 1 | G116: 189 | H116: 37.80 | J116: 80.60 | K116: 32.24 | L116: 70.04
A117: 114 | B117: 唐银杉 | C117: 4152510102701 | D117: 1021安顺市凤仪小学 | E117: 02专业技术岗位 | F117: 2 | G117: 181 | H117: 36.20 | J117: 90.60 | K117: 36.24 | L117: 72.44
A118: 115 | B118: 朱勤纯 | C118: 4152510101305 | D118: 1021安顺市凤仪小学 | E118: 04专业技术岗位 | F118: 1 | G118: 181 | H118: 36.20 | J118: 82.60 | K118: 33.04 | L118: 69.24
A119: 116 | B119: 赵雪 | C119: 4152510100818 | D119: 1034安顺市西秀区特殊教育学校 | E119: 01专业技术岗位 | F119: 2 | G119: 199 | H119: 39.80 | J119: 82.40 | K119: 32.96 | L119: 72.76
A120: 117 | B120: 但仕艳 | C120: 4152510100601 | D120: 1034安顺市西秀区特殊教育学校 | E120: 01专业技术岗位 | F120: 2 | G120: 192.5 | H120: 38.50 | J120: 77.40 | K120: 30.96 | L120: 69.46
A121: 118 | B121: 刘安琪 | C121: 4152510105615 | D121: 1022安顺市若飞小学 | E121: 04专业技术岗位 | F121: 1 | G121: 199.5 | H121: 39.90 | J121: 84.20 | K121: 33.68 | L121: 73.58
A122: 119 | B122: 刘嘉懿 | C122: 4152510101820 | D122: 1022安顺市若飞小学 | E122: 04专业技术岗位 | F122: 1 | G122: 194 | H122: 38.80 | J122: 88.20 | K122: 35.28 | L122: 74.08
A123: 120 | B123: 彭达 | C123: 4152510102229 | D123: 1028安顺市西秀区三合小学 | E123: 03专业技术岗位 | F123: 1 | G123: 171.5 | H123: 34.30 | J123: 80.00 | K123: 32.00 | L123: 66.30
A124: 121 | B124: 唐燕 | C124: 4152510101123 | D124: 1034安顺市西秀区特殊教育学校 | E124: 01专业技术岗位 | F124: 2 | G124: 189.5 | H124: 37.90 | J124: 80.00 | K124: 32.00 | L124: 69.90
A125: 122 | B125: 罗昌炜 | C125: 4252510201510 | D125: 1031安顺凤凰学校 | E125: 02专业技术岗位 | F125: 2 | G125: 189.5 | H125: 37.90 | J125: 73.60 | K125: 29.44 | L125: 67.34
A126: 123 | B126: 王汉洁 | C126: 4152510104105 | D126: 1034安顺市西秀区特殊教育学校 | E126: 01专业技术岗位 | F126: 2 | G126: 200 | H126: 40.00 | J126: 88.20 | K126: 35.28 | L126: 75.28
A127: 124 | B127: 杨云飞 | C127: 4152510102715 | D127: 1021安顺市凤仪小学 | E127: 01专业技术岗位 | F127: 1 | G127: 192 | H127: 38.40 | J127: 62.20 | K127: 24.88 | L127: 63.28
A128: 125 | B128: 陈政莉 | C128: 4152510102711 | D128: 1021安顺市凤仪小学 | E128: 01专业技术岗位 | F128: 1 | G128: 183.5 | H128: 36.70 | J128: 82.60 | K128: 33.04 | L128: 69.74
A129: 126 | B129: 王华云 | C129: 4152510104001 | D129: 1022安顺市若飞小学 | E129: 01专业技术岗位 | F129: 1 | G129: 189 | H129: 37.80 | J129: 75.60 | K129: 30.24 | L129: 68.04
A130: 127 | B130: 张媛鉴 | C130: 4152510102213 | D130: 1024安顺市第六小学 | E130: 02专业技术岗位 | F130: 2 | G130: 189 | H130: 37.80 | J130: 82.40 | K130: 32.96 | L130: 70.76
A131: 128 | B131: 杨敏 | C131: 4152510102809 | D131: 1026安顺市第九小学 | E131: 02专业技术岗位 | F131: 3 | G131: 175 | H131: 35.00 | J131: 75.20 | K131: 30.08 | L131: 65.08
A132: 129 | B132: 罗羽涵 | C132: 4152510103830 | D132: 1033安顺市西秀区启新学校 | E132: 02专业技术岗位 | F132: 1 | G132: 181 | H132: =G132/3*0.6 -> 36.20 | J132: 81.60 | K132: 32.64 | L132: 68.84
A133: 130 | B133: 陈蓉蓉 | C133: 4152510104218 | D133: 1020安顺市第一小学 | E133: 02专业技术岗位 | F133: 1 | G133: 174.5 | H133: 34.90 | J133: 84.60 | K133: 33.84 | L133: 68.74
A134: 131 | B134: 郑艳 | C134: 4152510102713 | D134: 1023安顺市第五小学 | E134: 04专业技术岗位 | F134: 1 | G134: 184.5 | H134: 36.90 | J134: 79.80 | K134: 31.92 | L134: 68.82
A135: 132 | B135: 杨萌 | C135: 4152510100410 | D135: 1020安顺市第一小学 | E135: 02专业技术岗位 | F135: 1 | G135: 166.5 | H135: 33.30 | J135: 79.80 | K135: 31.92 | L135: 65.22
A136: 133 | B136: 李孔艳 | C136: 4152510104611 | D136: 1028安顺市西秀区三合小学 | E136: 03专业技术岗位 | F136: 1 | G136: 171.5 | H136: 34.30 | J136: 83.60 | K136: 33.44 | L136: 67.74
A137: 134 | B137: 李然 | C137: 4152510101803 | D137: 1022安顺市若飞小学 | E137: 03专业技术岗位 | F137: 1 | G137: 172 | H137: 34.40 | J137: 88.80 | K137: 35.52 | L137: 69.92
A138: 135 | B138: 陈燕菊 | C138: 4152510103315 | D138: 1023安顺市第五小学 | E138: 03专业技术岗位 | F138: 1 | G138: 191.5 | H138: 38.30 | J138: 87.40 | K138: 34.96 | L138: 73.26
A139: 136 | B139: 肖尺萍 | C139: 4152510102509 | D139: 1032安顺市西秀区铁路子校 | E139: 02专业技术岗位 | F139: 1 | G139: 181.5 | H139: 36.30 | J139: 78.20 | K139: 31.28 | L139: 67.58
A140: 137 | B140: 郭键瑶 | C140: 4152510100205 | D140: 1026安顺市第九小学 | E140: 02专业技术岗位 | F140: 3 | G140: 194.5 | H140: 38.90 | J140: 79.40 | K140: 31.76 | L140: 70.66
A141: 138 | B141: 许帮宇 | C141: 4152510100320 | D141: 1022安顺市若飞小学 | E141: 02专业技术岗位 | F141: 1 | G141: 159 | H141: 31.80 | J141: 69.00 | K141: 27.60 | L141: 59.40
A142: 139 | B142: 丁金钱 | C142: 4152510105407 | D142: 1026安顺市第九小学 | E142: 01专业技术岗位 | F142: 2 | G142: 186 | H142: 37.20 | J142: 78.40 | K142: 31.36 | L142: 68.56
A143: 140 | B143: 王诗慧 | C143: 4152510100724 | D143: 1024安顺市第六小学 | E143: 03专业技术岗位 | F143: 1 | G143: 194.5 | H143: 38.90 | J143: 82.00 | K143: 32.80 | L143: 71.70
A144: 141 | B144: 刘莉 | C144: 4152510101702 | D144: 1024安顺市第六小学 | E144: 03专业技术岗位 | F144: 1 | G144: 183.5 | H144: 36.70 | J144: 70.80 | K144: 28.32 | L144: 65.02
A145: 142 | B145: 金凤阳 | C145: 4152510103511 | D145: 1031安顺凤凰学校 | E145: 05专业技术岗位 | F145: 2 | G145: 174 | H145: 34.80 | J145: 83.60 | K145: 33.44 | L145: 68.24
A146: 143 | B146: 余佩瑶 | C146: 4152510105310 | D146: 1020安顺市第一小学 | E146: 02专业技术岗位 | F146: 1 | G146: 183 | H146: 36.60 | J146: 91.00 | K146: 36.40 | L146: 73.00
A147: 144 | B147: 金海堂 | C147: 4152510102911 | D147: 1021安顺市凤仪小学 | E147: 03专业技术岗位 | F147: 1 | G147: 168.5 | H147: 33.70 | J147: 84.00 | K147: 33.60 | L147: 67.30
A148: 145 | B148: 刘亚婷 | C148: 4152510102105 | D148: 1031安顺凤凰学校 | E148: 05专业技术岗位 | F148: 2 | G148: 181 | H148: 36.20 | J148: 84.20 | K148: 33.68 | L148: 69.88
A149: 146 | B149: 熊茜 | C149: 4152510103605 | D149: 1023安顺市第五小学 | E149: 04专业技术岗位 | F149: 1 | G149: 196 | H149: 39.20 | J149: 82.60 | K149: 33.04 | L149: 72.24
A150: 147 | B150: 张文艳 | C150: 4152510100721 | D150: 1031安顺凤凰学校 | E150: 05专业技术岗位 | F150: 2 | G150: 182 | H150: 36.40 | J150: 84.20 | K150: 33.68 | L150: 70.08
A151: 148 | B151: 杨璇 | C151: 4152510101428 | D151: 1027安顺市西秀区东关办事处头铺小学 | E151: 01专业技术岗位 | F151: 1 | G151: 181.5 | H151: 36.30 | J151: 70.60 | K151: 28.24 | L151: 64.54
A152: 149 | B152: 王荣艳 | C152: 4152510104513 | D152: 1025安顺市第七小学 | E152: 01专业技术岗位 | F152: 3 | G152: 203 | H152: 40.60 | J152: 79.40 | K152: 31.76 | L152: 72.36
A153: 150 | B153: 张兰兰 | C153: 4152510100905 | D153: 1025安顺市第七小学 | E153: 01专业技术岗位 | F153: 3 | G153: 199.5 | H153: 39.90 | J153: 70.40 | K153: 28.16 | L153: 68.06
A154: 151 | B154: 王名枝 | C154: 4152510105601 | D154: 1027安顺市西秀区东关办事处头铺小学 | E154: 01专业技术岗位 | F154: 1 | G154: 183 | H154: 36.60 | J154: 66.60 | K154: 26.64 | L154: 63.24
A155: 152 | B155: 杜琪琪 | C155: 4152510103207 | D155: 1024安顺市第六小学 | E155: 01专业技术岗位 | F155: 3 | G155: 186.5 | H155: 37.30 | J155: 78.80 | K155: 31.52 | L155: 68.82
A156: 153 | B156: 刘晓艳 | C156: 4152510103017 | D156: 1024安顺市第六小学 | E156: 01专业技术岗位 | F156: 3 | G156: 186 | H156: 37.20 | J156: 74.80 | K156: 29.92 | L156: 67.12
A157: 154 | B157: 唐世娟 | C157: 4152510100213 | D157: 1022安顺市若飞小学 | E157: 01专业技术岗位 | F157: 1 | G157: 203.5 | H157: 40.70 | J157: 82.40 | K157: 32.96 | L157: 73.66
A158: 155 | B158: 罗园 | C158: 4152510104424 | D158: 1021安顺市凤仪小学 | E158: 01专业技术岗位 | F158: 1 | G158: 189.5 | H158: 37.90 | J158: 76.40 | K158: 30.56 | L158: 68.46
A159: 156 | B159: 王恬 | C159: 4152510104619 | D159: 1024安顺市第六小学 | E159: 01专业技术岗位 | F159: 3 | G159: 202.5 | H159: 40.50 | J159: 73.80 | K159: 29.52 | L159: 70.02
A160: 157 | B160: 全莹 | C160: 4152510105327 | D160: 1022安顺市若飞小学 | E160: 02专业技术岗位 | F160: 1 | G160: 174 | H160: 34.80 | J160: 83.40 | K160: 33.36 | L160: 68.16
A161: 158 | B161: 韩佳露 | C161: 4152510103216 | D161: 1025安顺市第七小学 | E161: 02专业技术岗位 | F161: 1 | G161: 178.5 | H161: 35.70 | J161: 84.80 | K161: 33.92 | L161: 69.62
A162: 159 | B162: 张丽 | C162: 4152510101229 | D162: 1033安顺市西秀区启新学校 | E162: 02专业技术岗位 | F162: 1 | G162: 172 | H162: 34.40 | J162: 73.00 | K162: 29.20 | L162: 63.60
A163: 160 | B163: 沈双珍 | C163: 4152510101429 | D163: 1024安顺市第六小学 | E163: 02专业技术岗位 | F163: 2 | G163: 178.5 | H163: 35.70 | J163: 84.80 | K163: 33.92 | L163: 69.62
A164: 161 | B164: 李苗苗 | C164: 4152510104517 | D164: 1023安顺市第五小学 | E164: 01专业技术岗位 | F164: 1 | G164: 162.5 | H164: 32.50 | J164: 77.60 | K164: 31.04 | L164: 63.54
A165: 162 | B165: 李仕玲 | C165: 4152510100319 | D165: 1026安顺市第九小学 | E165: 02专业技术岗位 | F165: 3 | G165: 185 | H165: 37.00 | J165: 77.00 | K165: 30.80 | L165: 67.80
A166: 163 | B166: 庄润芝 | C166: 4152510100511 | D166: 1028安顺市西秀区三合小学 | E166: 02专业技术岗位 | F166: 1 | G166: 197.5 | H166: 39.50 | J166: 81.60 | K166: 32.64 | L166: 72.14
A167: 164 | B167: 崔润远 | C167: 4152510103401 | D167: 1023安顺市第五小学 | E167: 02专业技术岗位 | F167: 1 | G167: 192.5 | H167: 38.50 | J167: 83.40 | K167: 33.36 | L167: 71.86
A168: 165 | B168: 任晓雨 | C168: 4152510100216 | D168: 1026安顺市第九小学 | E168: 01专业技术岗位 | F168: 2 | G168: 206.5 | H168: 41.30 | J168: 83.80 | K168: 33.52 | L168: 74.82
A169: 166 | B169: 撒玉香 | C169: 4152510101516 | D169: 1024安顺市第六小学 | E169: 01专业技术岗位 | F169: 3 | G169: 188 | H169: 37.60 | J169: 83.40 | K169: 33.36 | L169: 70.96
A170: 167 | B170: 沈娟 | C170: 4152510104505 | D170: 1025安顺市第七小学 | E170: 01专业技术岗位 | F170: 3 | G170: 197 | H170: 39.40 | J170: 68.60 | K170: =J170*0.4 -> 27.44 | L170: 66.84
A171: 168 | B171: 所婵 | C171: 4152510102029 | D171: 1025安顺市第七小学 | E171: 01专业技术岗位 | F171: 3 | G171: 189 | H171: 37.80 | J171: 76.00 | K171: 30.40 | L171: 68.20
A172: 169 | B172: 邓思杉 | C172: 4152510105312 | D172: 1025安顺市第七小学 | E172: 01专业技术岗位 | F172: 3 | G172: 189 | H172: 37.80 | J172: 80.60 | K172: 32.24 | L172: 70.04
A173: 170 | B173: 卢林娅 | C173: 4152510102320 | D173: 1020安顺市第一小学 | E173: 01专业技术岗位 | F173: 1 | G173: 181 | H173: 36.20 | J173: 73.60 | K173: 29.44 | L173: 65.64
A174: 171 | B174: 马岩 | C174: 4152510105026 | D174: 1024安顺市第六小学 | E174: 01专业技术岗位 | F174: 3 | G174: 187 | H174: 37.40 | J174: 69.60 | K174: 27.84 | L174: 65.24
A175: 172 | B175: 甘盼 | C175: 4152510100610 | D175: 1025安顺市第七小学 | E175: 01专业技术岗位 | F175: 3 | G175: 201 | H175: 40.20 | J175: 81.60 | K175: 32.64 | L175: 72.84
A176: 173 | B176: 肖礼婷 | C176: 4152510105422 | D176: 1024安顺市第六小学 | E176: 01专业技术岗位 | F176: 3 | G176: 191 | H176: 38.20 | J176: 73.40 | K176: 29.36 | L176: 67.56
A177: 174 | B177: 杨辉英 | C177: 4152510103714 | D177: 1020安顺市第一小学 | E177: 01专业技术岗位 | F177: 1 | G177: 179 | H177: 35.80 | J177: 67.00 | K177: 26.80 | L177: 62.60
A178: 175 | B178: 杨芙 | C178: 4152510103415 | D178: 1033安顺市西秀区启新学校 | E178: 02专业技术岗位 | F178: 1 | G178: 163 | H178: 32.60 | J178: 71.40 | K178: 28.56 | L178: 61.16
A179: 176 | B179: 尤卓 | C179: 4152510100805 | D179: 1024安顺市第六小学 | E179: 02专业技术岗位 | F179: 2 | G179: 193.5 | H179: 38.70 | J179: 81.40 | K179: 32.56 | L179: 71.26
A180: 177 | B180: 李鑫 | C180: 4152510102829 | D180: 1032安顺市西秀区铁路子校 | E180: 02专业技术岗位 | F180: 1 | G180: 157.5 | H180: 31.50 | J180: 71.80 | K180: 28.72 | L180: 60.22
A181: 178 | B181: 曹梦竹 | C181: 4152510103016 | D181: 1033安顺市西秀区启新学校 | E181: 01专业技术岗位 | F181: 2 | G181: 185.5 | H181: 37.10 | J181: 82.00 | K181: 32.80 | L181: 69.90
A182: 179 | B182: 谌艳业 | C182: 4152510101528 | D182: 1024安顺市第六小学 | E182: 03专业技术岗位 | F182: 1 | G182: 187 | H182: 37.40 | J182: 82.40 | K182: 32.96 | L182: 70.36
A183: 180 | B183: 张妮蕾 | C183: 4152510105607 | D183: 1026安顺市第九小学 | E183: 01专业技术岗位 | F183: 2 | G183: 194 | H183: 38.80 | J183: 79.00 | K183: 31.60 | L183: 70.40
A184: 181 | B184: 董斌雪 | C184: 4152510101209 | D184: 1026安顺市第九小学 | E184: 01专业技术岗位 | F184: 2 | G184: 198.5 | H184: 39.70 | J184: 84.20 | K184: 33.68 | L184: 73.38
A185: 182 | B185: 裴冬梅 | C185: 4152510101412 | D185: 1026安顺市第九小学 | E185: 01专业技术岗位 | F185: 2 | G185: 188 | H185: 37.60 | J185: 80.20 | K185: 32.08 | L185: 69.68
A186: 183 | B186: 金雪倩 | C186: 4152510105504 | D186: 1032安顺市西秀区铁路子校 | E186: 01专业技术岗位 | F186: 2 | G186: 186.5 | H186: 37.30 | J186: 85.40 | K186: 34.16 | L186: 71.46
A187: 184 | B187: 姚珍艳 | C187: 4152510103119 | D187: 1022安顺市若飞小学 | E187: 02专业技术岗位 | F187: 1 | G187: 171 | H187: 34.20 | J187: 77.00 | K187: 30.80 | L187: 65.00
A188: 185 | B188: 陈妍如 | C188: 4152510101620 | D188: 1024安顺市第六小学 | E188: 02专业技术岗位 | F188: 2 | G188: 183 | H188: 36.60 | J188: 85.40 | K188: 34.16 | L188: 70.76
A189: 186 | B189: 易隐林 | C189: 4152510102917 | D189: 1025安顺市第七小学 | E189: 02专业技术岗位 | F189: 1 | G189: 152 | H189: 30.40 | J189: 75.40 | K189: 30.16 | L189: 60.56
A190: 187 | B190: 杨露 | C190: 4152510105510 | D190: 1026安顺市第九小学 | E190: 02专业技术岗位 | F190: 3 | G190: 180 | H190: 36.00 | J190: 81.80 | K190: 32.72 | L190: 68.72
A191: 188 | B191: 黄巧巧 | C191: 4152510105010 | D191: 1026安顺市第九小学 | E191: 02专业技术岗位 | F191: 3 | G191: 188 | H191: 37.60 | J191: 87.00 | K191: 34.80 | L191: 72.40
A192: 189 | B192: 王侣侣 | C192: 4152510100430 | D192: 1026安顺市第九小学 | E192: 02专业技术岗位 | F192: 3 | G192: 187 | H192: 37.40 | J192: 80.40 | K192: 32.16 | L192: 69.56
A193: 190 | B193: 李飞 | C193: 4152510100308 | D193: 1032安顺市西秀区铁路子校 | E193: 02专业技术岗位 | F193: 1 | G193: 178 | H193: 35.60 | J193: 80.20 | K193: 32.08 | L193: 67.68
A194: 191 | B194: 罗飘飘 | C194: 4152510102216 | D194: 1025安顺市第七小学 | E194: 02专业技术岗位 | F194: 1 | G194: 139.5 | H194: 27.90 | J194: 75.40 | K194: 30.16 | L194: 58.06
A195: 192 | B195: 朱家强 | C195: 4152510102405 | D195: 1026安顺市第九小学 | E195: 02专业技术岗位 | F195: 3 | G195: 181 | H195: 36.20 | J195: 84.60 | K195: 33.84 | L195: 70.04
A196: 193 | B196: 张成权 | C196: 4252510200312 | D196: 1031安顺凤凰学校 | E196: 02专业技术岗位 | F196: 2 | G196: 192.5 | H196: =G196/3*0.6 -> 38.50 | J196: 85.20 | K196: 34.08 | L196: 72.58
A197: 194 | B197: 覃树香 | C197: 4152510103918 | D197: 1024安顺市第六小学 | E197: 01专业技术岗位 | F197: 3 | G197: 185.5 | H197: 37.10 | J197: 80.00 | K197: 32.00 | L197: 69.10
A198: 195 | B198: 何娜 | C198: 4152510100630 | D198: 1020安顺市第一小学 | E198: 01专业技术岗位 | F198: 1 | G198: 174 | H198: 34.80 | J198: 面试缺考
A199: 196 | B199: 黄燕青 | C199: 4152510102222 | D199: 1022安顺市若飞小学 | E199: 01专业技术岗位 | F199: 1 | G199: 187.5 | H199: 37.50 | J199: 面试缺考
A200: 197 | B200: 陈胜健 | C200: 4152510100501 | D200: 1022安顺市若飞小学 | E200: 03专业技术岗位 | F200: 1 | G200: 169 | H200: 33.80 | J200: 83.00 | K200: =J200*0.4 -> 33.20 | L200: 67.00
... 112 more rows
